[Event "3rd Sharjah Challengers 2023"]
[Site "Sharjah"]
[Date "2023.05.21"]
[Round "5.4"]
[White "Lim, Zhuo Ren"]
[Black "Rios, Cristhian Camilo"]
[Result "1/2-1/2"]
[ECO "E11"]
[WhiteElo "2294"]
[BlackElo "2469"]
[Annotator "TA"]
[PlyCount "43"]
[EventDate "2023.05.16"]
[EventType "swiss"]
[EventCountry "UAE"]
[SourceTitle "playchess.com"]
[Source "ChessBase"]
[SourceQuality "1"]
[TimeControl "5400+30"]

{[%evp 16,43,10,0,5,8,8,0,6,0,5,10,16,16,20,27,27,20,22,17,23,20,35,23,26,20,44,41,48,50]} 1. d4 {[%emt 1:31:00]} Nf6 {[%emt 1:31:00]} 2. c4 {[%emt 0:00:30]} e6 {[%emt 0:00:30]} 3. Nf3 {[%emt 0:00:30]} d5 {[%emt 0:00:30]} 4. g3 {[%emt 0:00:30]} Bb4+ {[%emt 0:00:30]} 5. Bd2 {[%emt 0:00:30]} Be7 {[%emt 0:00:30]} 6. Bg2 {[%emt 0:00:30]} O-O {[%emt 0:00:30]} 7. O-O {[%emt 0:00:30]} c6 {[%emt 0:00:30]} 8. Qc2 {[%emt 0:00:30]} Nbd7 {[%emt 0:00:30]} 9. Bf4 {[%emt 0:00:30]} b6 {[%emt 0:00:30] E11: Bogo-Indian.} 10. Nbd2 {[%emt 0:00:30]} Nh5 {[%emt 0:00:30]} 11. e3 $1 {[%emt 0:00:30][%mdl 4] is now more promising than 11.Be3.} (11. cxd5 {is more complex.} Nxf4 12. Qxc6 Nxe2+ 13. Kh1) 11... Bb7 {[%emt 0:00:30] The position is equal.} 12. cxd5 {[%emt 0:00:30]} exd5 {[%emt 0:00:30]} 13. h4 {[%emt 0:00:30]} c5 {[%emt 0:00:30]} 14. Nb1 {[%emt 0:00:30] [#]} Rc8 $146 {[%emt 0:00:30]} ({Predecessor:} 14... b5 15. dxc5 Nxf4 16. exf4 Nxc5 17. Ng5 g6 18. Rd1 b4 19. Nd2 Qb6 20. Nb3 Rfd8 21. Nxc5 {½-½ Mishra,A (2549)-Balakrishnan,P (2510) Chesterfield SPICE Cup op 2022 (5)}) 15. Nc3 {[%emt 0:00:30]} cxd4 {[%emt 0:00:30]} 16. Nxd4 {[%emt 0:00:30]} Nxf4 {[%emt 0:00:30]} 17. exf4 {[%emt 0:00:30]} Bb4 {[%emt 0:00:30]} 18. Rfd1 {[%emt 0:00:30]} Bxc3 {[%emt 0:00:30]} 19. bxc3 {[%emt 0:00:30]} Nf6 {[%emt 0:00:30]} 20. Qa4 {[%emt 0:00:30]} a6 {[%emt 0:00:30]} 21. Qb3 {[%emt 0:00:30]} Qc7 {[%emt 0:00:30]} 22. Rab1 {[%emt 0:00:30] Weighted Error Value: White=0.01 (flawless) /Black=0.04 (flawless)} 1/2-1/2

[Event "3rd Sharjah Challengers 2023"]
[Site "Sharjah"]
[Date "2023.05.21"]
[Round "5.5"]
[White "Mammadova, Gulnar"]
[Black "Hesham, Abdelrahman"]
[Result "0-1"]
[ECO "E97"]
[WhiteElo "2349"]
[BlackElo "2409"]
[Annotator "TA"]
[PlyCount "114"]
[EventDate "2023.05.16"]
[EventType "swiss"]
[EventCountry "UAE"]
[SourceTitle "playchess.com"]
[Source "ChessBase"]
[SourceQuality "1"]
[TimeControl "5400+30"]

{[%evp 20,114,46,24,20,21,34,0,0,0,0,0,0,-33,-25,-29,0,0,0,0,0,-14,-14,-14,-27,-66,-36,-25,-15,-47,-32,-54,-31,-25,-28,-60,-62,-200,-200,-193,-185,-202,-195,-234,-229,-191,-201,-227,-193,-327,-313,-353,-346,-409,-397,-395,-397,-385,-391,-390,-391,-369,-349,-360,-337,-335,-220,-230,-223,-222,-215,-234,-200,-192,-175,-295,-340,-560,-572,-697,-689,-932,-925,-882,-821,-1520,-1443,-1274,-1299,-2205,-2103,-2322,-2090,-29975,-29976,-29980,-29981]} 1. c4 {[%emt 0:00:16]} Nf6 {[%emt 0:00:48]} 2. Nf3 {[%emt 0:00:22]} g6 {[%emt 0:00:06]} 3. Nc3 {[%emt 0:00:18]} Bg7 {[%emt 0:00:06]} 4. e4 {[%emt 0:00:30]} d6 {[%emt 0:00:05]} 5. d4 {[%emt 0:00:22]} O-O {[%emt 0:00:07]} 6. Be2 {[%emt 0:00:17]} e5 {[%emt 0:01:39]} 7. O-O {[%emt 0:00:44]} Nc6 {[%emt 0:00:04]} 8. d5 {[%emt 0:00:24]} Ne7 {[%emt 0:00:04]} 9. b4 {[%emt 0:00:20]} a5 {[%emt 0:01:28]} 10. bxa5 {[%emt 0:00:30]} Rxa5 {[%emt 0:01:43]} 11. a4 {[%emt 0:00:26]} Nh5 {[%emt 0:01:39] 11...Ne8 is a critical line. E97: King's Indian: Classical Main Line (6...e5 7 0-0 Nc6): 8 Be3 and 8 d5 Ne7, not 9 Ne1.} 12. Re1 {[%emt 0:00:29]} Nf4 {[%emt 0:06:59] [#]} 13. Bxf4 $146 {[%emt 0:06:59]} ({Predecessor:} 13. Bf1 h6 14. Ra3 f5 15. exf5 gxf5 16. Bxf4 exf4 17. Nd4 Ng6 18. Ne6 Bxe6 19. Rxe6 Qg5 20. Nb5 Rf7 21. Rh3 {1-0 Esipenko,A (2642)-Ismagambetov,A (2528) Wch Blitz Moscow 2019 (17)}) 13... exf4 {[%emt 0:06:53] The position is equal.} 14. Qd2 {[%emt 0:02:30]} h6 {[%emt 0:06:39]} 15. Nb5 {[%emt 0:08:48]} Ra8 {[%emt 0:13:05]} 16. Rac1 {[%emt 0:09:33]} g5 {[%emt 0:07:55]} 17. Bd1 {[%emt 0:05:03]} Ng6 {[%emt 0:04:30]} (17... g4 $5 {[%cal Rg4f3]} 18. Nh4 Bf6 $11) 18. c5 {[%emt 0:02:43]} g4 {[%emt 0:03:09] Strongly threatening ...dxc5.} 19. Nfd4 $1 {[%emt 0:01:27]} Be5 {[%emt 0:06:39]} 20. Nf5 {[%emt 0:07:32]} h5 {[%emt 0:03:56]} 21. cxd6 {[%emt 0:07:09]} cxd6 {[%emt 0:00:09]} 22. Qb4 {[%emt 0:00:15][%cal Rb5d6]} Bxf5 {[%emt 0:04:46]} (22... f3 $5 {[%cal Rc8f5]} 23. g3 (23. Nbxd6 Bxf5 24. Nxf5 Qg5 $17) (23. gxf3 $2 Qg5 $19) 23... Bxf5 24. exf5 Nh4 $14) 23. exf5 {[%emt 0:00:03]} Nh4 {[%emt 0:00:16]} 24. g3 {[%emt 0:07:29]} fxg3 $1 {[%emt 0:03:31]} ({Much weaker is} 24... Nxf5 25. gxf4 Bg7 26. Rc7 $11) 25. hxg3 {[%emt 0:00:31] Black must now prevent Rxe5.} Nxf5 {[%emt 0:00:33]} 26. Bc2 {[%emt 0:02:06]} Ng7 {[%emt 0:00:49]} 27. Rxe5 {[%emt 0:09:38]} dxe5 {[%emt 0:00:32]} 28. Qe4 {[%emt 0:00:20] This costs White the game.} ({Better is} 28. d6 $15) 28... f5 $19 {[%emt 0:01:12]} 29. Qxe5 {[%emt 0:01:19]} Qg5 $1 {[%emt 0:02:41] Wards off d6} 30. Rd1 {[%emt 0:00:57] [#]} Rae8 $1 {[%emt 0:00:17] Repels d6} 31. Qf4 {[%emt 0:01:15]} Qxf4 {[%emt 0:02:00]} 32. gxf4 {[%emt 0:00:02]} Rd8 {[%emt 0:00:46]} 33. Bb3 {[%emt 0:02:32]} Rf6 {[%emt 0:03:27]} 34. Rc1 {[%emt 0:04:52]} (34. d6+ {was called for.} Kh7 35. d7) 34... Ne8 {[%emt 0:00:52]} 35. Nd4 {[%emt 0:01:03]} Nd6 {[%emt 0:00:21]} 36. Re1 {[%emt 0:00:39]} Kf7 {[%emt 0:08:02]} 37. a5 {[%emt 0:00:13]} Rc8 {[%emt 0:00:14] Against Rc1} 38. a6 {[%emt 0:01:01]} bxa6 {[%emt 0:02:11]} 39. Nc6 {[%emt 0:00:09]} Kf8 {[%emt 0:01:29]} 40. Ra1 {[%emt 0:02:15]} Nb7 {[%emt 0:01:14]} 41. Bc4 {[%emt 0:03:25]} Nd8 {[%emt 0:04:16]} 42. Ne5 {[%emt 0:00:14]} Ke7 {[%emt 0:02:38] Wards off Nd7} 43. Re1 {[%emt 0:02:06]} Kd6 {[%emt 0:00:27] ...a5 would be deadly.} 44. Bxa6 {[%emt 0:00:17]} Rc5 {[%emt 0:00:59]} 45. Bc4 {[%emt 0:03:37]} Kc7 {[%emt 0:00:14]} 46. Ra1 {[%emt 0:01:28]} Rb6 {[%emt 0:01:03] Hoping for ...Nb7.} 47. Ra7+ {[%emt 0:00:57] [#]} (47. Ra8 $142) 47... Nb7 $1 {[%emt 0:00:50]} 48. Ra8 $2 {[%emt 0:01:13]} (48. Bd3 {is a better defense.}) 48... Rb4 {[%emt 0:00:16]} 49. Ba2 {[%emt 0:03:35]} Ra5 {[%emt 0:00:18]} 50. d6+ {[%emt 0:02:35]} Kxd6 {[%emt 0:00:10]} 51. Rxa5 {[%emt 0:00:54]} Nxa5 {[%emt 0:00:04][%mdl 4096] Endgame KRN-KBN} 52. Bg8 {[%emt 0:00:37]} Rxf4 {[%emt 0:00:33]} 53. Ng6 {[%emt 0:00:21]} Rb4 {[%emt 0:00:21] aiming for ...Nc6.} 54. Kg2 {[%emt 0:00:31]} Nc6 {[%emt 0:01:23]} 55. Nh4 {[%emt 0:00:24]} Ke5 {[%emt 0:00:12]} 56. Bf7 {[%emt 0:00:05]} Kf6 {[%emt 0:00:22]} 57. Be8 {[%emt 0:00:05]} Ne5 {[%emt 0:00:17] Weighted Error Value: White=0.64/Black=0.06 (flawless)} 0-1

[Event "3rd Sharjah Challengers 2023"]
[Site "Sharjah"]
[Date "2023.05.21"]
[Round "5.6"]
[White "Vandenbussche, Thibaut"]
[Black "Bai, Adelard"]
[Result "1-0"]
[ECO "B12"]
[WhiteElo "2437"]
[BlackElo "2409"]
[Annotator "TA"]
[PlyCount "77"]
[EventDate "2023.05.16"]
[EventType "swiss"]
[EventCountry "UAE"]
[SourceTitle "playchess.com"]
[Source "ChessBase"]
[SourceQuality "1"]
[TimeControl "5400+30"]

{[%evp 16,77,0,0,0,0,-1,-12,0,0,0,-14,-16,-24,-29,-42,-7,0,45,0,0,0,0,0,18,-68,43,50,45,43,66,74,156,135,204,206,197,196,241,188,208,207,195,158,125,156,145,102,102,97,126,97,675,670,29972,717,695,671,29982,29983,29981,29980,29976,29976]} 1. e4 {[%emt 0:00:01]} c6 {[%emt 0:00:08][%cal Bc7c6,Bc6c5][%mdl 32]} 2. d4 {[%emt 0:00:17]} d5 {[%emt 0:00:04]} 3. e5 {[%emt 0:00:05]} Bf5 {[%emt 0:00:11]} 4. Nc3 {[%emt 0:00:15]} e6 {[%emt 0:00:27]} 5. g4 {[%emt 0:00:05]} Bg6 {[%emt 0:00:04]} 6. Nge2 {[%emt 0:00:03]} c5 {[%emt 0:00:16]} 7. h4 {[%emt 0:00:13]} h5 {[%emt 0:00:49]} 8. Nf4 {[%emt 0:00:15]} Bh7 {[%emt 0:00:08]} 9. Nxh5 {[%emt 0:00:22]} Nc6 {[%emt 0:00:20] B12: Caro-Kann: Advance Variation.} 10. dxc5 {[%emt 0:00:47]} Bxc5 {[%emt 0:00:20] White should prevent ...Qb6.} 11. Bg5 $1 {[%emt 0:03:23][%mdl 4] is more profitable than 11.Bb5 at the moment.} Qc7 {[%emt 0:00:07][%mdl 1024] Black has compensation. The position is equal.} 12. f4 {[%emt 0:02:01]} Qb6 {[%emt 0:00:04] [#] ( -> ...Bf2+)} 13. Rh3 $146 {[%emt 0:03:39]} (13. Nxg7+ $2 Kf8 14. Nxe6+ fxe6 $17) ({Predecessor:} 13. Be2 Bg6 14. Na4 Qa5+ 15. c3 Bf8 16. b4 Qc7 17. Bd3 Bxh5 18. gxh5 f6 19. Bg6+ {0-1 Wieczorek,O (2509)-Socko,B (2601) POL-ch 80th Warsaw 2023 (1.4)}) 13... Bf2+ {[%emt 0:01:40]} (13... Qxb2 14. f5 (14. Nxg7+ Kf8 $14) 14... Bb4 15. Bd2 $16 (15. Nxg7+ Kf8 $11)) 14. Kd2 {[%emt 0:02:06][%cal Be1d2,Bd2c1,Bc1d1][%mdl 32]} Kf8 {[%emt 0:01:12]} (14... Qxb2 $2 15. Rb1 (15. Nxg7+ Kf8 $16) 15... Qa3 16. Rxb7 $18 (16. Nxg7+ Kf8 $16)) 15. Bd3 {[%emt 0:05:06]} (15. Kc1 Be3+ 16. Kb1 Nb4 $15) 15... Bxd3 {[%emt 0:00:07]} (15... Qxb2 16. Rb1 Qa3 17. Rxb7 Bxd3 18. Rxd3 $11) 16. Rxd3 {[%emt 0:00:22]} Rc8 {[%emt 0:03:21]} (16... Qxb2 17. Rb1 Qa3 18. Nxd5 (18. Rxb7 Qa6 $11) 18... Qxa2 19. Nc3 $16) 17. a3 {[%emt 0:08:31]} (17. Ke2 $5 {[%cal Rc3a4]}) 17... Bd4 {[%emt 0:30:57]} 18. Kc1 {[%emt 0:04:59]} f6 $1 {[%emt 0:14:07]} 19. exf6 {[%emt 0:02:51]} gxf6 {[%emt 0:02:46] [#]} 20. Rxd4 {[%emt 0:01:29]} Qxd4 {[%emt 0:01:00] [#]} (20... Rxh5 $1 $15 21. Rd3 Rh7) 21. Nxf6 $1 $14 {[%emt 0:02:01]} Qxd1+ {[%emt 0:04:49]} 22. Kxd1 {[%emt 0:01:05]} Kg7 {[%emt 0:08:15]} 23. Nd7 $36 {[%emt 0:05:47][%mdl 2048] Nb5 would be deadly. White is really pushing.} Rc7 {[%emt 0:02:22]} (23... Nh6 $142) 24. Nc5 $16 {[%emt 0:03:29] White is more active.} Nd4 {[%emt 0:00:39]} (24... Nd8 $16) 25. Ne2 $1 $18 {[%emt 0:01:22]} Rxc5 {[%emt 0:07:07]} 26. Nxd4 {[%emt 0:00:07]} Kf7 {[%emt 0:00:50]} 27. Kd2 {[%emt 0:01:05]} Nf6 {[%emt 0:01:25]} 28. Bxf6 {[%emt 0:02:00]} Kxf6 {[%emt 0:00:01][%mdl 4096] Endgame KRR-KRN} 29. h5 {[%emt 0:01:33]} ({Stronger than} 29. Re1 Rc4 30. Kd3 (30. Nxe6 Rxh4 31. g5+ Kf7 $11) (30. Rxe6+ $2 {is the wrong capture.} Kf7 $19) 30... Rxh4 $11) 29... e5 {[%emt 0:01:31]} 30. g5+ {[%emt 0:00:26]} Kf7 {[%emt 0:00:15]} 31. fxe5 {[%emt 0:12:28][%cal Bf4e5,Be5e6,Be6e7][%mdl 32]} Rxh5 {[%emt 0:00:12]} 32. Rf1+ {[%emt 0:00:16]} Kg8 {[%emt 0:04:00]} 33. e6 $1 {[%emt 0:01:44] Black must now prevent e7.} Rxg5 $2 {[%emt 0:12:29][%mdl 8192] [#] Loses the game.} (33... Rc8 $16) 34. e7 $1 {[%emt 0:02:30]} Rg2+ {[%emt 0:00:35]} 35. Kd1 {[%emt 0:00:47]} (35. Ke1 $142 Rc8 36. Ne6 (36. Rf5 Re8 $17) 36... Rg4 37. Rf8+ Kh7 38. Rxc8 Re4+ 39. Kf2 Rxe6 40. e8=Q) 35... Rc8 {[%emt 0:00:06] [#]} 36. Ne6 $1 {[%emt 0:00:43] Intending Nd8 and mate.} Rgxc2 {[%emt 0:00:32] Hoping for ...Rc1+.} 37. Rf8+ {[%emt 0:00:27] White mates.} Kh7 {[%emt 0:00:01]} 38. Rxc8 {[%emt 0:00:15]} Rxc8 {[%emt 0:00:03]} 39. Nd8 {[%emt 0:00:06] Weighted Error Value: White=0.11 (very precise) /Black=0.65} 1-0

[Event "3rd Sharjah Challengers 2023"]
[Site "Sharjah"]
[Date "2023.05.21"]
[Round "5.7"]
[White "Mkrtchyan, Mariam"]
[Black "Saydaliev, Saidakbar"]
[Result "1-0"]
[ECO "D38"]
[WhiteElo "2360"]
[BlackElo "2434"]
[Annotator "TA"]
[PlyCount "107"]
[EventDate "2023.05.16"]
[EventType "swiss"]
[EventCountry "UAE"]
[SourceTitle "playchess.com"]
[Source "ChessBase"]
[SourceQuality "1"]
[TimeControl "5400+30"]

{[%evp 18,107,34,14,17,16,14,16,10,14,16,6,16,0,2,0,28,32,9,20,31,21,25,0,0,0,0,0,0,0,0,0,0,0,0,1,2,0,8,0,3,4,40,39,41,20,8,10,11,0,0,0,0,0,0,0,0,0,14,14,14,14,109,14,14,14,280,292,281,283,296,298,730,553,458,109,29953,4810,29974,29975,29978,29964,29959,29960,12531,12561,29978,29979,29985,29983,29985,29985]} 1. d4 {[%emt 0:00:03]} Nf6 {[%emt 0:00:12]} 2. c4 {[%emt 0:00:05]} e6 {[%emt 0:00:07]} 3. Nf3 {[%emt 0:00:05]} d5 {[%emt 0:00:07]} 4. Nc3 {[%emt 0:00:05]} Bb4 {[%emt 0:01:01]} 5. Bg5 {[%emt 0:07:05]} h6 {[%emt 0:00:40]} 6. Bxf6 {[%emt 0:00:20]} Qxf6 {[%emt 0:00:11]} 7. e3 {[%emt 0:00:54]} O-O {[%emt 0:05:17]} 8. Rc1 {[%emt 0:00:19]} dxc4 {[%emt 0:16:10]} 9. Bxc4 {[%emt 0:00:22]} c5 {[%emt 0:01:52]} 10. O-O {[%emt 0:00:07] Hoping for Ne4.} (10. Qb3 {simplifies} cxd4 11. Qxb4 dxc3 12. Qxc3 Nd7 13. Qxf6 Nxf6 14. Ke2) 10... cxd4 {[%emt 0:00:29] D38: Queen's Gambit Declined: Ragozin Defence (4 Nf3 Bb4).} 11. Ne4 {[%emt 0:00:52]} Qe7 {[%emt 0:00:39]} 12. a3 {[%emt 0:00:47]} Ba5 {[%emt 0:01:28] The position is equal.} 13. Qxd4 {[%emt 0:00:28]} Rd8 {[%emt 0:04:38] Against Qd6} 14. Qe5 $1 {[%emt 0:05:45] 14.Qe5 is better than 14.Qc5.} Bc7 {[%emt 0:06:05] [#]} 15. Qc3 $146 {[%emt 0:04:06]} ({Predecessor:} 15. Qh5 b6 16. Nfg5 Bb7 17. f4 Bd5 18. Nxf7 Bxe4 19. Nxd8 Bxd8 20. Qe5 Bb7 21. Bxe6+ {1-0 Riazantsev,A (2626)-Grebnev,A (2486) Moscow Dvoretsky Memorial 2022 (5.2)}) 15... Bd7 {[%emt 0:06:58]} 16. Be2 {[%emt 0:15:36]} Nc6 {[%emt 0:16:00]} 17. Nc5 {[%emt 0:02:09]} Be8 {[%emt 0:00:29]} 18. Nxb7 {[%emt 0:11:24]} Bxh2+ {[%emt 0:00:11][%mdl 64] Discovered Attack} 19. Nxh2 {[%emt 0:00:12]} Qxb7 {[%emt 0:00:01]} 20. Bf3 {[%emt 0:00:10][%cal Rf3c6]} Rac8 {[%emt 0:00:03]} 21. Rfd1 {[%emt 0:06:42]} Rxd1+ {[%emt 0:01:06]} 22. Rxd1 {[%emt 0:00:17]} Qb8 {[%emt 0:00:10]} 23. Rc1 {[%emt 0:04:34]} Ne7 {[%emt 0:03:39][%cal Bc6e7,Be7g6,Bg6e5,Be5c4][%mdl 32]} 24. Qd2 {[%emt 0:00:11]} Rd8 {[%emt 0:00:06]} 25. Qc2 {[%emt 0:01:50]} Rc8 {[%emt 0:00:06]} 26. Qb1 {[%emt 0:02:02]} Bb5 {[%emt 0:03:10]} 27. b4 {[%emt 0:03:34]} Ng6 {[%emt 0:00:40]} 28. Be4 {[%emt 0:05:23]} Ne5 {[%emt 0:01:56]} 29. Nf3 {[%emt 0:01:36]} Nc4 {[%emt 0:02:27]} (29... Nxf3+ {simplifies} 30. Bxf3 Rxc1+ 31. Qxc1 Qd8) 30. Nd4 {[%emt 0:09:40] Nxb5 would be deadly.} Ba4 {[%emt 0:09:04]} ({Don't play} 30... Nxa3 31. Rxc8+ Qxc8 32. Qa1 $16) 31. Nc6 {[%emt 0:05:57]} Bxc6 {[%emt 0:03:01]} 32. Rxc4 {[%emt 0:00:05]} Ba4 {[%emt 0:02:17]} 33. Rxc8+ {[%emt 0:03:16]} Qxc8 $11 {[%emt 0:00:01][%mdl 4096] Endgame KQB-KQB} 34. Qd3 {[%emt 0:00:49]} g6 {[%emt 0:10:24]} 35. Kh2 {[%emt 0:06:43]} Qc7+ {[%emt 0:01:16]} 36. g3 {[%emt 0:00:16]} h5 {[%emt 0:00:19]} 37. Kg2 {[%emt 0:00:15]} Bc6 {[%emt 0:02:18]} 38. b5 {[%emt 0:00:53]} Bxe4+ {[%emt 0:02:07]} 39. Qxe4 {[%emt 0:00:00] KQ-KQ} Kh7 {[%emt 0:00:11]} (39... Qa5 $11) 40. a4 {[%emt 0:00:06]} (40. Qf4 $16 e5 41. Qf6) 40... Qa5 {[%emt 0:00:58]} 41. Qd4 {[%emt 0:02:10]} Qc7 $2 {[%emt 0:00:35][%mdl 8192]} (41... Kg8 $11 {and Black has nothing to worry.}) 42. Qb4 $1 $18 {[%emt 0:00:51]} Qb7+ {[%emt 0:00:05] [#]} 43. Kg1 $1 {[%emt 0:01:12] Black must now prevent a5.} g5 {[%emt 0:02:05]} 44. a5 {[%emt 0:00:10] aiming for a6.} Kg7 $2 {[%emt 0:00:46]} (44... Qd5 45. Qb1+ Kh6) 45. b6 {[%emt 0:00:07]} axb6 {[%emt 0:00:04]} 46. axb6 {[%emt 0:01:21]} (46. Qxb6 $18 {is the precise move to win.} Qf3 47. Qd4+ Kg6 48. a6) 46... h4 $2 {[%emt 0:00:18][%mdl 8192]} 47. gxh4 {[%emt 0:00:44] Threatening mate with Qc3+.} gxh4 {[%emt 0:00:02] [#]} 48. Qc3+ $1 {[%emt 0:00:34]} Kh7 {[%emt 0:01:44]} 49. Qc7 {[%emt 0:00:43]} Qf3 {[%emt 0:00:02]} 50. Qf4 {[%emt 0:00:15]} ({Less strong is} 50. b7 h3 $16) 50... Qb7 {[%emt 0:01:15]} 51. Qxh4+ {[%emt 0:00:05]} Kg6 {[%emt 0:00:09]} 52. Qg3+ {[%emt 0:00:12] White mates.} Kh7 {[%emt 0:00:52]} 53. Qc7 {[%emt 0:00:04]} Qf3 {[%emt 0:00:05]} 54. Qh2+ {[%emt 0:00:04] Weighted Error Value: White=0.21 (precise) /Black=0.50} 1-0

[Event "3rd Sharjah Challengers 2023"]
[Site "Sharjah"]
[Date "2023.05.21"]
[Round "5.8"]
[White "Haznedaroglu, Kivanc"]
[Black "Tissir, Mohamed"]
[Result "1/2-1/2"]
[ECO "B27"]
[WhiteElo "2418"]
[BlackElo "2354"]
[Annotator "TA"]
[PlyCount "63"]
[EventDate "2023.05.16"]
[EventType "swiss"]
[EventCountry "UAE"]
[SourceTitle "playchess.com"]
[Source "ChessBase"]
[SourceQuality "1"]
[TimeControl "5400+30"]

{[%evp 14,63,0,0,20,5,21,27,21,17,30,0,10,0,0,0,0,0,0,-2,8,0,24,0,10,0,49,43,40,51,46,21,43,48,33,2,9,-14,-38,-28,0,-76,-66,-102,-106,-135,-51,-55,-53,-68,-70,-74]} 1. e4 {[%emt 0:00:04]} c5 {[%emt 0:06:12]} 2. Nf3 {[%emt 0:00:09]} g6 {[%emt 0:11:10]} 3. d4 {[%emt 0:00:08]} cxd4 {[%emt 0:00:01]} 4. Qxd4 {[%emt 0:00:09]} Nf6 {[%emt 0:00:02]} 5. Qa4 {[%emt 0:01:03]} Nc6 {[%emt 0:03:56]} 6. Nc3 {[%emt 0:00:08]} d6 {[%emt 0:05:59]} 7. e5 {[%emt 0:00:07]} dxe5 {[%emt 0:00:12]} 8. Nxe5 {[%emt 0:00:03][%cal Of1c4]} Bd7 {[%emt 0:00:14] B27: Sicilian: 2 Nf3, unusual Black 2nd moves.} 9. Nxd7 {[%emt 0:00:08]} Qxd7 {[%emt 0:00:09]} 10. Be3 {[%emt 0:07:37]} Bg7 {[%emt 0:02:12] White has an edge.} 11. Rd1 {[%emt 0:02:38]} Qg4 {[%emt 0:03:41]} 12. Rd4 {[%emt 0:00:55]} (12. Qb3 $5 {[%cal Rb3b7]} Qb4 13. Be2 $14) 12... Qc8 {[%emt 0:00:55]} 13. Bb5 {[%emt 0:05:59]} O-O {[%emt 0:07:18]} 14. Rc4 {[%emt 0:00:43][%cal Oe1g1] [#]} Qb8 $146 {[%emt 0:06:47]} ({Predecessor:} 14... Qf5 15. Bxc6 bxc6 16. O-O Nd5 17. Nd1 Nb6 18. Bxb6 axb6 19. Qxc6 Rac8 20. Qe4 Qxe4 21. Rxe4 Rxc2 22. Rxe7 {½-½ Nozdrachev,L (2367)-Lintchevski,D (2571) Nezhmetdinov Memorial 44th 2022 (5)}) 15. O-O {[%emt 0:12:49]} Ne5 {[%emt 0:03:44] [#] Hoping for ...a6.} 16. Rh4 {[%emt 0:00:37]} Qc8 {[%emt 0:15:30]} 17. Be2 {[%emt 0:03:37]} ({Of course not} 17. Bxa7 Rd8 18. Re1 Nc6 19. Bxc6 bxc6 $11) 17... a6 {[%emt 0:02:24]} 18. h3 {[%emt 0:05:50]} Rd8 {[%emt 0:06:00]} 19. Qb3 {[%emt 0:01:38]} Qe6 {[%emt 0:09:11]} (19... e6 $11 {is more appropriate.}) 20. Qxe6 $14 {[%emt 0:24:35]} fxe6 {[%emt 0:00:04]} 21. Re1 {[%emt 0:00:54]} Rac8 {[%emt 0:05:05]} 22. a4 {[%emt 0:03:36]} Nd5 {[%emt 0:05:06]} 23. Bd4 {[%emt 0:01:01] This pair of bishops is nice.} Nf7 {[%emt 0:03:06]} 24. Bxg7 {[%emt 0:03:58]} Kxg7 {[%emt 0:00:06]} 25. Bf3 {[%emt 0:00:05] [#] Nxd5 would be deadly.} Nxc3 {[%emt 0:03:07]} 26. bxc3 {[%emt 0:00:07]} Rd6 {[%emt 0:00:17]} 27. Rd4 {[%emt 0:08:04]} (27. Re3 $11 {remains equal.}) 27... Rxc3 $17 {[%emt 0:00:36]} 28. Rxd6 {[%emt 0:01:30]} Nxd6 {[%emt 0:00:02]} 29. Rb1 {[%emt 0:03:53]} b5 {[%emt 0:00:51]} ({Worse is} 29... Rxc2 30. Bxb7 Rc4 31. Bxa6 Rxa4 32. Bb5 $15) (29... Rc7 $17 30. Rb2 Kf7) 30. axb5 $15 {[%emt 0:00:08] Black is slightly better.} axb5 {[%emt 0:00:01]} 31. Be2 {[%emt 0:00:10]} Rxc2 {[%emt 0:00:25]} 32. Bxb5 {[%emt 0:00:02] Weighted Error Value: White=0.17 (very precise) /Black=0.14 (very precise)} 1/2-1/2

[Event "3rd Sharjah Challengers 2023"]
[Site "Sharjah"]
[Date "2023.05.21"]
[Round "5.9"]
[White "Socko, Monika"]
[Black "Zawadzka, Jolanta"]
[Result "1/2-1/2"]
[ECO "A13"]
[WhiteElo "2406"]
[BlackElo "2348"]
[Annotator "TA"]
[PlyCount "33"]
[EventDate "2023.05.16"]
[EventType "swiss"]
[EventCountry "UAE"]
[SourceTitle "playchess.com"]
[Source "ChessBase"]
[SourceQuality "1"]
[TimeControl "5400+30"]

{[%evp 9,33,8,9,-6,0,-6,0,-9,-6,-6,0,0,0,-5,-10,-9,0,0,0,0,0,0,0,0,0,0]} 1. c4 {[%emt 0:00:04]} e6 {[%emt 0:04:59]} 2. Nf3 {[%emt 0:00:06]} d5 {[%emt 0:00:05]} 3. e3 {[%emt 0:00:05]} Nf6 {[%emt 0:00:06]} 4. b3 {[%emt 0:00:27]} b6 {[%emt 0:00:41]} 5. Bb2 {[%emt 0:01:23]} Bb7 {[%emt 0:03:27] The position is equal.} 6. cxd5 {[%emt 0:05:18] A13: English Opening: 1...e6.} exd5 {[%emt 0:00:18]} 7. Be2 {[%emt 0:01:54]} Bd6 {[%emt 0:01:29]} 8. O-O {[%emt 0:01:30]} O-O {[%emt 0:00:30]} 9. Nc3 {[%emt 0:00:13]} a6 {[%emt 0:00:50]} 10. Qc2 {[%emt 0:03:24]} Re8 {[%emt 0:03:41]} 11. Rac1 {[%emt 0:05:16]} Nbd7 {[%emt 0:01:12]} 12. d4 {[%emt 0:06:16]} Rc8 {[%emt 0:03:24]} 13. Rfd1 {[%emt 0:02:22]} Qe7 {[%emt 0:01:43]} 14. Qf5 {[%emt 0:05:40]} Rcd8 {[%emt 0:10:53] [#]} 15. Qc2 $146 {[%emt 0:04:23]} ({Predecessor:} 15. Rc2 h6 16. Qh3 Nf8 17. Nh4 g6 18. Nf3 Kg7 19. Ne5 c5 20. Na4 cxd4 21. Ng4 Nxg4 22. Bxg4 h5 23. Bxd4+ {0-1 Goldbecker,K-Gburek,J Team-ch L18K2-R(4-5) 2020}) 15... Rc8 {[%emt 0:02:26]} 16. Qf5 {[%emt 0:00:53]} Rcd8 {[%emt 0:00:04]} 17. Qc2 {[%emt 0:00:11] An uneventful encounter.   Weighted Error Value: White=0.03 (flawless) /Black=0.01 (flawless)} 1/2-1/2